bitfinex-derivatives/quotes_BTCF0:USTF0_20241008
["timestamp","ask_amount","ask_price","bid_price","bid_amount"]
[1728365334374,0.189011,62498.0,62497.0,0.097012]
[1728365340280,0.005,62498.0,62497.0,0.457812]
[1728365341081,0.005,62498.0,62497.0,0.818612]
[1728365341483,0.0037,62505.0,62504.0,0.064005]
[1728365341680,0.063999,62511.0,62506.0,0.064002]
[1728365341880,0.063999,62511.0,62504.0,0.4808]
[1728365341881,0.063999,62511.0,62507.0,0.064001]
[1728365342075,0.12,62510.0,62509.0,0.063999]
[1728365342483,0.12,62510.0,62508.0,0.0306]
[1728365342788,0.064,62509.0,62508.0,0.0306]
[1728365344391,0.078,62509.0,62508.0,0.0306]
[1728365344584,0.07796,62509.0,62508.0,0.0306]
[1728365345083,0.09196,62509.0,62508.0,0.0316]
[1728365346689,0.45276,62509.0,62497.0,0.435911]
[1728365346878,0.18,62498.0,62497.0,0.3608]
[1728365348682,0.183,62498.0,62497.0,0.424812]
[1728365349378,0.003,62498.0,62497.0,0.424812]
[1728365350085,0.005,62498.0,62497.0,0.424812]
[1728365350687,0.005,62498.0,62497.0,0.457412]
[1728365351185,0.002,62498.0,62497.0,0.457412]
[1728365351391,0.004,62498.0,62497.0,0.457412]
[1728365351782,0.003,62498.0,62497.0,0.457412]
[1728365353985,0.003,62498.0,62497.0,0.424812]
[1728365356686,0.183,62498.0,62497.0,0.424812]
[1728365357183,0.003,62498.0,62497.0,0.424812]
[1728365358687,0.003,62498.0,62497.0,0.064012]
[1728365362489,0.003,62498.0,62494.0,0.064015]
[1728365362490,0.183,62498.0,62494.0,0.064015]
[1728365362799,0.247011,62498.0,62495.0,0.064014]
[1728365363298,0.183,62498.0,62495.0,0.064014]
[1728365363598,0.247012,62498.0,62495.0,0.064014]
[1728365364396,0.246012,62498.0,62495.0,0.064014]
[1728365364589,0.247012,62498.0,62495.0,0.064014]
[1728365366998,0.003,62498.0,62497.0,0.064012]
[1728365367999,0.06401,62500.0,62497.0,0.064012]
[1728365368198,0.003,62498.0,62497.0,0.064012]
[1728365369793,0.001,62498.0,62497.0,0.064012]
[1728365370805,0.002,62498.0,62497.0,0.064012]
[1728365371099,0.066011,62498.0,62497.0,0.064012]
[1728365371501,0.067011,62498.0,62497.0,0.064012]
[1728365377802,0.067011,62498.0,62493.0,0.0327]
[1728365377803,0.064012,62497.0,62493.0,0.0327]
[1728365378206,0.064012,62497.0,62494.0,0.064014]
[1728365378405,0.12,62495.0,62494.0,0.064014]
[1728365379303,0.12,62495.0,62494.0,0.11200748]
[1728365380807,0.12,62495.0,62494.0,0.11400748]
[1728365381011,0.12,62495.0,62494.0,0.11500748]
[1728365382704,0.12,62495.0,62494.0,0.067014]
[1728365382912,0.12,62495.0,62494.0,0.11501661]
[1728365383105,0.184014,62495.0,62494.0,0.11501661]
[1728365383502,0.184014,62495.0,62494.0,0.067014]
[1728365389215,0.184014,62495.0,62494.0,0.003]
[1728365391611,0.24142906,62495.0,62494.0,0.003]
[1728365391806,0.184014,62495.0,62494.0,0.003]
[1728365402733,0.064014,62495.0,62494.0,0.003]
[1728365402914,0.09351833,62499.0,62496.0,0.064013]
[1728365403119,0.064011,62499.0,62498.0,0.3608]
[1728365403324,0.0037,62505.0,62498.0,0.3608]
[1728365403525,0.0037,62508.0,62507.0,0.064002]
[1728365403723,0.36164,62510.0,62508.0,0.064001]
[1728365403724,0.38961928,62510.0,62508.0,0.064001]
[1728365403928,0.00240013,62511.0,62508.0,0.12]
[1728365404128,0.00240013,62511.0,62510.0,0.424799]
[1728365405225,0.12,62515.0,62510.0,0.424799]
[1728365405539,0.028,62511.0,62510.0,0.424799]
[1728365406322,0.014,62511.0,62510.0,0.424799]
[1728365407022,0.134,62511.0,62510.0,0.424799]
[1728365407223,0.134,62511.0,62505.0,0.064004]
[1728365407428,0.12,62506.0,62505.0,0.064004]
[1728365407624,0.12,62506.0,62504.0,0.3608]
[1728365407829,0.184003,62506.0,62504.0,0.3608]
[1728365408421,0.18,62505.0,62504.0,0.3608]
[1728365409331,0.18,62505.0,62497.0,0.3608]
[1728365409332,0.244004,62505.0,62497.0,0.3608]
[1728365409630,0.244004,62505.0,62495.0,0.064014]
[1728365409631,0.18,62499.0,62495.0,0.064014]
[1728365410332,0.18,62499.0,62492.0,0.076]
[1728365410526,0.18,62499.0,62496.0,0.064013]
[1728365411331,0.004,62499.0,62497.0,0.064012]
[1728365412220,0.007,62499.0,62497.0,0.064012]
[1728365412922,0.007,62499.0,62498.0,0.3608]
[1728365413320,0.0037,62504.0,62498.0,0.3608]
[1728365413525,0.429342,62508.0,62502.0,0.064007]
[1728365413730,0.424802,62508.0,62502.0,0.064007]
[1728365414234,0.4529902,62508.0,62502.0,0.064007]
[1728365414436,0.4529902,62508.0,62504.0,0.064005]
[1728365414734,0.18,62507.0,62504.0,0.064005]
[1728365415031,0.18,62507.0,62505.0,0.064003]
[1728365415428,0.244002,62507.0,62499.0,0.064009]
[1728365415626,0.18,62504.0,62499.0,0.064009]
[1728365415824,0.3608,62506.0,62492.0,0.43796]
[1728365416029,0.244016,62493.0,62492.0,0.076]
[1728365417033,0.18,62493.0,62492.0,0.076]
[1728365417431,0.18,62493.0,62492.0,0.079]
[1728365417825,0.3608,62494.0,62492.0,0.079]
[1728365418226,0.3608,62494.0,62492.0,0.082]
[1728365418735,0.424816,62494.0,62492.0,0.082]
[1728365419231,0.424816,62494.0,62492.0,0.081]
[1728365419737,0.424816,62494.0,62492.0,0.078]
[1728365419932,0.424816,62494.0,62492.0,0.08]
[1728365420439,0.18,62493.0,62492.0,0.08]
[1728365420632,0.244016,62493.0,62492.0,0.08]
[1728365421536,0.244016,62493.0,62492.0,0.081]
[1728365422532,0.0037,62505.0,62492.0,1.82379805]
[1728365422835,0.3608,62511.0,62504.0,0.60459468]
[1728365423039,0.3608,62511.0,62506.0,0.04784538]
[1728365423340,0.3608,62511.0,62505.0,0.14434538]
[1728365424229,0.3608,62511.0,62505.0,0.0965]
[1728365424936,0.18,62508.0,62505.0,0.0346]
[1728365425734,0.18,62508.0,62505.0,0.002]
[1728365425938,0.18,62508.0,62505.0,0.001]
[1728365426240,0.193,62508.0,62505.0,0.002]
[1728365426635,0.0328,62507.0,62505.0,0.002]
[1728365426830,0.0328,62507.0,62505.0,0.001]
[1728365427140,0.0328,62507.0,62505.0,0.002]
[1728365427845,0.0438,62507.0,62505.0,0.002]
[1728365428734,0.0558,62507.0,62505.0,0.002]
[1728365433939,0.424803,62506.0,62497.0,0.04784538]
[1728365434140,0.3608,62498.0,62492.0,0.141136]
[1728365434336,0.3608,62493.0,62492.0,0.140016]
[1728365437448,0.3608,62493.0,62492.0,0.079]
[1728365437839,0.3608,62493.0,62492.0,0.082]
[1728365446656,0.3608,62505.0,62492.0,1.10284]
[1728365446856,0.3608,62505.0,62501.0,0.064007]
[1728365447051,0.3608,62505.0,62502.0,0.128406]
[1728365448650,0.009,62505.0,62503.0,0.064005]
[1728365448858,0.019,62505.0,62503.0,0.064005]
[1728365449966,0.019,62505.0,62503.0,0.244005]
[1728365450348,0.3608,62512.0,62508.0,0.064001]
[1728365450751,0.5408,62512.0,62508.0,0.064001]
[1728365451857,0.18,62509.0,62508.0,0.064001]
[1728365452765,0.18,62509.0,62503.0,0.002]
[1728365452961,0.18,62504.0,62503.0,0.002]
[1728365453258,0.18,62504.0,62503.0,0.001]
[1728365453862,0.18,62504.0,62502.0,0.490447]
[1728365454159,0.18,62504.0,62502.0,0.489207]
[1728365454465,0.184,62504.0,62503.0,0.001]
[1728365454652,0.189,62504.0,62503.0,0.001]
[1728365455052,0.189,62504.0,62502.0,0.491407]
[1728365455260,0.189,62504.0,62502.0,0.490207]
[1728365456561,0.191,62504.0,62502.0,0.491207]
[1728365456757,0.195,62504.0,62503.0,0.001]
[1728365457149,0.5558,62504.0,62503.0,0.001]
[1728365457554,0.5558,62504.0,62502.0,0.130407]
[1728365458053,0.5478,62504.0,62503.0,0.001]
[1728365458259,0.5558,62504.0,62503.0,0.002]
[1728365458857,0.58460156,62504.0,62503.0,0.002]
[1728365459259,0.5558,62504.0,62503.0,0.002]
[1728365459869,0.5558,62504.0,62503.0,0.001]
[1728365460167,0.5558,62504.0,62502.0,0.130407]
[1728365460557,0.3758,62504.0,62503.0,0.001]
[1728365460762,0.015,62504.0,62503.0,0.001]
[1728365460966,0.0037,62510.0,62509.0,0.064]
[1728365461169,0.18,62516.0,62510.0,0.063998]
[1728365461367,0.3608,62518.0,62512.0,0.063996]
[1728365461669,0.0037,62517.0,62513.0,0.063996]
[1728365461864,0.39098907,62518.0,62513.0,0.063996]
[1728365462068,0.39018907,62518.0,62513.0,0.063996]
[1728365462773,0.18,62516.0,62513.0,0.063996]
[1728365464463,0.17996,62516.0,62513.0,0.064996]
[1728365464664,0.17996,62516.0,62513.0,0.065996]
[1728365465166,0.17996,62516.0,62506.0,0.0037]
[1728365465367,0.18,62509.0,62504.0,0.064004]
[1728365466377,0.5408,62512.0,62505.0,0.064004]
[1728365466674,0.5408,62512.0,62508.0,0.064]
[1728365466873,0.5408,62512.0,62509.0,0.064]
[1728365467772,0.5468,62512.0,62509.0,0.064]
[1728365467959,0.3668,62512.0,62509.0,0.064]
[1728365468159,0.3748,62512.0,62509.0,0.065]
[1728365468372,0.3748,62512.0,62509.0,0.066]
[1728365468567,0.3748,62512.0,62510.0,0.063999]
[1728365468964,0.014,62512.0,62510.0,0.063999]
[1728365469370,0.014,62512.0,62509.0,0.002]
[1728365469568,0.014,62512.0,62511.0,0.063998]
[1728365469762,0.015,62512.0,62511.0,0.063998]
[1728365470565,0.009,62512.0,62509.0,0.001]
[1728365470767,0.015,62512.0,62511.0,0.063998]
[1728365471167,0.009,62512.0,62511.0,0.063998]
[1728365471373,0.015,62512.0,62511.0,0.064998]
[1728365472778,0.014,62512.0,62511.0,0.065998]
[1728365479991,0.3748,62512.0,62511.0,0.065998]
[1728365488188,0.3748,62512.0,62511.0,0.002]
[1728365488491,0.438797,62512.0,62511.0,0.002]
[1728365494299,0.438797,62512.0,62497.0,0.3252]
[1728365494503,0.12,62502.0,62500.0,0.064008]
[1728365494697,0.184008,62501.0,62495.0,0.0309]
[1728365494901,0.184013,62496.0,62494.0,0.07708]
[1728365495200,0.184013,62496.0,62494.0,0.076]
[1728365496502,0.064013,62496.0,62494.0,0.076]
[1728365496797,0.54164,62498.0,62494.0,0.077]
[1728365497005,0.5408,62498.0,62495.0,0.064014]
[1728365497199,0.5408,62498.0,62495.0,0.11189614]
[1728365497394,0.5408,62498.0,62495.0,0.064014]
[1728365497990,0.3608,62498.0,62496.0,0.064013]
[1728365498197,0.3608,62498.0,62497.0,0.064012]
[1728365499306,0.3618,62498.0,62497.0,0.064012]
[1728365499606,0.3628,62498.0,62497.0,0.064012]
[1728365502601,0.426811,62498.0,62494.0,0.12388214]
[1728365502797,0.426811,62498.0,62495.0,0.064014]
[1728365505713,0.425811,62498.0,62495.0,0.064014]
[1728365505901,0.426811,62498.0,62495.0,0.064014]
[1728365509106,0.066011,62498.0,62495.0,0.064014]
[1728365510199,0.066011,62498.0,62494.0,0.076]
[1728365510399,0.066011,62498.0,62496.0,0.064012]
[1728365511105,0.064012,62497.0,62494.0,0.076]
[1728365511307,0.066011,62498.0,62494.0,0.076]
[1728365511513,0.066011,62498.0,62494.0,0.140015]
[1728365512101,0.066011,62498.0,62495.0,0.06384286]
[1728365512814,0.066011,62498.0,62497.0,0.04790575]
[1728365513114,0.066011,62498.0,62497.0,0.0479054]
[1728365513314,0.066011,62498.0,62494.0,0.20385786]
[1728365513315,0.066011,62498.0,62495.0,0.06384286]
[1728365513817,0.066011,62498.0,62497.0,0.04790955]
[1728365514212,0.065011,62498.0,62494.0,0.20385786]
[1728365514414,0.066011,62498.0,62494.0,0.20385786]
[1728365514617,0.066011,62498.0,62495.0,0.12785686]
[1728365514808,0.065011,62498.0,62495.0,0.12785686]
[1728365515010,0.066011,62498.0,62495.0,0.12785686]
[1728365515905,0.066011,62498.0,62496.0,0.06384286]
[1728365517916,0.064,62509.0,62497.0,0.3608]
[1728365518115,0.09223159,62509.0,62508.0,0.12]
[1728365518523,0.09223159,62509.0,62508.0,0.0332]
[1728365518716,0.45303159,62509.0,62508.0,0.0811262]
[1728365519026,0.3698,62509.0,62508.0,0.277201]
[1728365520319,0.3758,62509.0,62508.0,0.277201]
[1728365520522,0.3758,62509.0,62508.0,0.097201]
[1728365520720,0.3668,62509.0,62508.0,0.097201]
[1728365520923,0.3748,62509.0,62508.0,0.099201]
[1728365521624,0.6188,62509.0,62508.0,0.002]
[1728365523509,0.6188,62509.0,62500.0,0.04792679]
[1728365523510,0.064008,62501.0,62500.0,0.04792679]
[1728365523713,0.424808,62501.0,62496.0,0.04792679]
[1728365523913,0.18,62498.0,62495.0,0.07852679]
[1728365524115,0.424813,62496.0,62495.0,0.04796419]
[1728365524412,0.064014,62495.0,62494.0,0.076]
[1728365525821,0.064014,62495.0,62494.0,0.078]
[1728365526622,0.064014,62495.0,62494.0,0.08]
[1728365528615,0.096014,62495.0,62494.0,0.08]
[1728365529011,0.096014,62495.0,62494.0,0.06150001]
[1728365531925,0.064014,62495.0,62494.0,0.24150001]
[1728365532321,0.064014,62495.0,62494.0,0.06150001]
[1728365533325,0.3608,62496.0,62494.0,0.30551501]
[1728365533525,0.3608,62496.0,62495.0,0.064014]
[1728365534126,0.3608,62496.0,62495.0,0.12791539]
[1728365534329,0.3608,62503.0,62495.0,0.064014]
[1728365534556,0.064008,62501.0,62499.0,0.04791798]
[1728365536230,0.064008,62501.0,62500.0,0.04791798]
[1728365536435,0.068008,62501.0,62500.0,0.04791798]
[1728365536729,0.068008,62501.0,62498.0,0.04791798]
[1728365537330,0.004,62501.0,62499.0,0.04791798]
[1728365537535,0.004,62501.0,62498.0,0.04791798]
[1728365538041,0.008,62501.0,62500.0,0.07980358]
[1728365538225,0.008,62501.0,62500.0,0.51546144]
[1728365538539,0.3688,62516.0,62500.0,0.99546144]
[1728365538837,0.3608,62516.0,62512.0,0.04789434]
[1728365539161,0.3608,62516.0,62506.0,0.18]
[1728365539162,0.5408,62516.0,62510.0,0.04789434]
[1728365539635,0.5408,62516.0,62509.0,0.04789434]
[1728365539833,0.3608,62510.0,62508.0,0.04789434]
[1728365540229,0.3608,62510.0,62507.0,0.0321]
[1728365540832,0.3608,62510.0,62507.0,0.07999434]
[1728365541238,0.3648,62510.0,62508.0,0.001]
[1728365541632,0.3608,62510.0,62507.0,0.0321]
[1728365541942,0.3608,62510.0,62507.0,0.0331]
[1728365542135,0.3608,62510.0,62507.0,0.097101]
[1728365542348,0.3608,62510.0,62508.0,0.064001]
[1728365542833,0.39570917,62516.0,62508.0,0.064001]
[1728365543039,0.005,62510.0,62508.0,0.064001]
[1728365543537,0.009,62510.0,62508.0,0.065001]
[1728365543733,0.004,62510.0,62508.0,0.065001]
[1728365544042,0.009,62510.0,62508.0,0.066001]
[1728365544839,0.009,62510.0,62508.0,0.11389534]
[1728365545643,0.009,62510.0,62508.0,0.066001]
[1728365545845,0.009,62510.0,62508.0,0.11389534]
[1728365546141,0.009,62510.0,62508.0,0.066001]
[1728365546341,0.009,62510.0,62508.0,0.11389534]
[1728365546533,0.009,62510.0,62508.0,0.066001]
[1728365552440,0.009,62510.0,62497.0,0.064011]
[1728365552441,0.5408,62509.0,62497.0,0.064011]
[1728365552741,0.3608,62502.0,62495.0,0.0042]
[1728365552943,0.5408,62496.0,62482.0,0.424827]
[1728365553151,0.3608,62491.0,62482.0,0.424827]
[1728365553344,0.3608,62496.0,62485.0,0.18]
[1728365553543,0.3608,62496.0,62488.0,0.0327]
[1728365554348,0.3608,62496.0,62489.0,0.0309]
[1728365554947,0.39001102,62496.0,62489.0,0.0309]
[1728365555542,0.3608,62491.0,62489.0,0.0309]
[1728365556739,0.3608,62491.0,62489.0,0.0319]
[1728365557844,0.3608,62491.0,62489.0,0.0379]
[1728365558645,0.064014,62495.0,62489.0,0.0379]
[1728365558842,0.3608,62491.0,62489.0,0.0379]
[1728365559058,0.3608,62491.0,62489.0,0.0369]
[1728365559349,0.3608,62491.0,62489.0,0.0429]
[1728365560445,0.3608,62491.0,62489.0,0.0389]
[1728365560749,0.3608,62491.0,62489.0,0.10292]
[1728365560952,0.3608,62491.0,62489.0,0.10092]
[1728365561143,0.3608,62491.0,62489.0,0.10692]
[1728365561947,0.3608,62499.0,62489.0,0.2229]
[1728365562242,0.3608,62499.0,62495.0,0.064014]
[1728365563449,0.3638,62499.0,62495.0,0.064014]
[1728365563743,0.427811,62499.0,62495.0,0.064014]
[1728365564242,0.064011,62498.0,62495.0,0.064014]
[1728365565041,0.064011,62498.0,62489.0,0.0309]
[1728365565244,0.3608,62492.0,62491.0,0.064018]
[1728365566945,0.3608,62492.0,62491.0,0.069018]
[1728365567143,0.3608,62492.0,62491.0,0.074018]
[1728365569650,0.3608,62492.0,62491.0,0.073978]
[1728365570443,0.3608,62492.0,62491.0,0.01]
[1728365570849,0.604817,62492.0,62491.0,0.01]
[1728365573251,0.63358134,62492.0,62491.0,0.01]
[1728365578257,0.45358134,62492.0,62491.0,0.01]
[1728365578455,0.3608,62492.0,62491.0,0.01]
[1728365578857,0.3608,62492.0,62491.0,0.074018]
[1728365581567,0.3608,62492.0,62491.0,0.01]
[1728365582461,0.424817,62492.0,62491.0,0.01]
[1728365582760,0.424817,62492.0,62491.0,0.074018]
[1728365582761,0.3608,62492.0,62491.0,0.074018]
[1728365584159,0.36164,62498.0,62491.0,0.01]
[1728365584357,0.0112,62502.0,62491.0,0.01]
[1728365584358,0.0037,62502.0,62497.0,0.18]
[1728365584564,0.36320059,62504.0,62498.0,0.0644]
[1728365584864,0.36320059,62504.0,62502.0,0.064007]
[1728365585253,0.36320059,62504.0,62503.0,0.064006]
[1728365586062,0.37320059,62504.0,62503.0,0.064006]
[1728365586368,0.064006,62503.0,62502.0,0.001]
[1728365587558,0.064006,62503.0,62501.0,0.04782831]
[1728365588066,0.18,62502.0,62499.0,0.04782831]
[1728365588457,0.06401,62499.0,62498.0,0.0317]
[1728365588674,0.42481,62499.0,62498.0,0.0317]
[1728365590169,0.42681,62499.0,62498.0,0.0317]
[1728365590965,0.42781,62499.0,62498.0,0.0317]
[1728365594959,0.064015,62495.0,62491.0,0.064017]
[1728365595161,0.3608,62494.0,62491.0,0.095617]
[1728365595369,0.424816,62494.0,62491.0,0.095617]
[1728365596161,0.424816,62494.0,62491.0,0.097617]
[1728365596575,0.424816,62494.0,62491.0,0.098617]
[1728365596872,0.424816,62494.0,62492.0,0.064017]
[1728365597770,0.064016,62493.0,62491.0,0.0366]
[1728365597966,0.064016,62493.0,62492.0,0.003]
[1728365597967,0.244016,62493.0,62492.0,0.003]
[1728365598671,0.244016,62493.0,62492.0,0.006]
[1728365599071,0.244016,62493.0,62492.0,0.007]
[1728365599975,0.244016,62493.0,62492.0,0.004]
[1728365600866,0.244016,62493.0,62492.0,0.008]
[1728365604177,0.965616,62493.0,62492.0,0.008]
[1728365608476,0.244016,62493.0,62492.0,0.008]
[1728365608677,0.965616,62493.0,62492.0,0.008]
[1728365610579,0.064023,62486.0,62485.0,0.0037]
[1728365610891,0.064023,62486.0,62476.0,0.08415653]
[1728365610892,0.064033,62477.0,62476.0,0.08415653]
[1728365611088,0.604833,62477.0,62476.0,0.08045653]
[1728365611286,0.604833,62477.0,62476.0,0.0325]
[1728365612080,0.604833,62477.0,62476.0,0.08045653]
[1728365612282,0.3608,62477.0,62476.0,0.0325]
[1728365612486,0.3608,62477.0,62476.0,0.08045653]
[1728365612687,0.3608,62477.0,62476.0,0.09445653]
[1728365612889,0.3608,62477.0,62476.0,0.0465]
[1728365613290,0.3618,62477.0,62476.0,0.0605]
[1728365614496,0.3618,62477.0,62476.0,0.06046]
[1728365614793,0.3618,62477.0,62476.0,0.10835513]
[1728365616390,0.3618,62477.0,62476.0,0.10835439]
[1728365616596,0.3618,62477.0,62476.0,0.06046]
[1728365617897,0.3618,62477.0,62476.0,0.124494]
[1728365626612,0.545833,62477.0,62476.0,0.06046]
[1728365628513,0.4818,62477.0,62476.0,0.06046]
[1728365628705,0.4818,62477.0,62476.0,0.12431913]
[1728365628906,0.4818,62477.0,62476.0,0.06046]
[1728365629514,0.4818,62477.0,62476.0,0.12431913]
[1728365631508,0.4818,62477.0,62476.0,0.06046]
[1728365631714,0.4818,62477.0,62476.0,0.10841697]
[1728365633309,0.4818,62477.0,62476.0,0.17245097]
[1728365633615,0.4818,62477.0,62476.0,0.124494]
[1728365636406,0.4818,62477.0,62476.0,0.18843663]
[1728365637614,0.4818,62477.0,62476.0,0.06046]
[1728365638822,0.4818,62477.0,62476.0,0.1244999]
[1728365639018,0.4818,62477.0,62476.0,0.06046]
[1728365644118,0.545833,62477.0,62476.0,0.06046]
[1728365646632,0.545833,62477.0,62476.0,0.028]
[1728365648023,0.545833,62477.0,62476.0,0.014]
[1728365648219,0.545833,62477.0,62476.0,0.028]
[1728365648220,0.546833,62477.0,62476.0,0.028]
[1728365649129,0.546833,62477.0,62476.0,0.014]
[1728365649332,0.546833,62477.0,62476.0,0.022]
[1728365650031,0.546833,62477.0,62476.0,0.016]
[1728365652519,0.546833,62477.0,62476.0,0.20006962]
[1728365652520,0.3628,62477.0,62476.0,0.20006962]
[1728365652726,0.002,62477.0,62476.0,0.32205631]
[1728365652929,0.3645,62484.0,62476.0,0.25802231]
[1728365653120,0.3608,62484.0,62483.0,0.06403198]
[1728365653432,0.57306637,62484.0,62483.0,0.06402133]
[1728365654316,0.50904037,62484.0,62479.0,0.08003997]
[1728365654520,0.38904037,62484.0,62483.0,0.001]
[1728365654724,0.57306537,62484.0,62483.0,0.001]
[1728365654925,0.45306537,62484.0,62483.0,0.001]
[1728365655631,0.57306537,62484.0,62483.0,0.001]
[1728365656329,0.57306537,62484.0,62483.0,0.002]
[1728365657128,0.50904037,62484.0,62483.0,0.002]
[1728365657329,0.3608,62484.0,62483.0,0.066027]
[1728365657721,0.3608,62484.0,62483.0,0.098727]
[1728365658118,0.3608,62489.0,62483.0,0.0347]
[1728365658317,0.3608,62489.0,62488.0,0.064021]
[1728365659229,0.3688,62489.0,62488.0,0.064021]
[1728365659924,0.3648,62489.0,62488.0,0.064021]
[1728365661330,0.3608,62489.0,62488.0,0.066021]
[1728365661928,0.3608,62489.0,62488.0,0.068021]
[1728365664435,0.0037,62496.0,62494.0,0.064014]
[1728365664633,0.0037,62502.0,62495.0,0.12]
[1728365664835,0.456306,62503.0,62494.0,0.064014]
[1728365664836,0.12,62499.0,62494.0,0.064014]
[1728365665027,0.12,62499.0,62495.0,0.064014]
[1728365665733,0.005,62496.0,62495.0,0.064014]
[1728365666328,0.12,62496.0,62495.0,0.064014]
[1728365666524,0.015,62499.0,62495.0,0.002]
[1728365666837,0.015,62499.0,62496.0,0.064013]
[1728365667230,0.18,62497.0,62496.0,0.064013]
[1728365668724,0.186,62497.0,62496.0,0.064013]
[1728365669930,0.185,62497.0,62496.0,0.064013]
[1728365671637,0.186,62497.0,62496.0,0.064013]
[1728365671841,0.185,62497.0,62496.0,0.064013]
[1728365672239,0.184,62497.0,62496.0,0.064013]
[1728365672542,0.185,62497.0,62496.0,0.064013]
[1728365672838,0.186,62497.0,62496.0,0.064013]
[1728365673938,0.183,62497.0,62496.0,0.064013]
[1728365674140,0.185,62497.0,62496.0,0.064013]
[1728365674530,0.184,62497.0,62491.0,0.064018]
[1728365674738,0.182,62497.0,62491.0,0.064018]
[1728365674934,0.185,62497.0,62491.0,0.064018]
[1728365675135,0.186,62497.0,62491.0,0.064018]
[1728365675648,0.184,62497.0,62491.0,0.064018]
[1728365676344,0.185,62497.0,62491.0,0.064018]
[1728365677044,0.249012,62497.0,62488.0,0.3608]
[1728365677440,0.250012,62497.0,62488.0,0.3608]
[1728365677850,0.249012,62497.0,62488.0,0.3608]
[1728365678347,0.246012,62497.0,62488.0,0.3608]
[1728365678539,0.249012,62497.0,62488.0,0.3608]
[1728365679044,0.254012,62497.0,62488.0,0.425821]
[1728365679744,0.254012,62497.0,62488.0,0.065021]
[1728365679938,0.0305,62496.0,62488.0,0.065021]
[1728365680748,0.0305,62496.0,62490.0,0.064019]
[1728365681945,0.0435,62496.0,62490.0,0.065019]
[1728365682346,0.0365,62496.0,62490.0,0.065019]
[1728365682549,0.0425,62496.0,62490.0,0.066019]
[1728365684460,0.107513,62496.0,62490.0,0.065019]
[1728365684954,0.106513,62496.0,62490.0,0.065019]
[1728365685146,0.100513,62496.0,62490.0,0.065019]
[1728365685346,0.100513,62496.0,62490.0,0.066019]
[1728365685347,0.3608,62493.0,62490.0,0.066019]
[1728365685547,0.03,62492.0,62490.0,0.066019]
[1728365686444,0.12,62491.0,62490.0,0.066019]
[1728365686641,0.12,62491.0,62490.0,0.065019]
[1728365687653,0.121,62491.0,62490.0,0.065019]
[1728365688150,0.121,62491.0,62490.0,0.064019]
[1728365688756,0.122,62491.0,62490.0,0.064019]
[1728365690450,0.122,62491.0,62485.0,0.04790545]
[1728365690654,0.122,62491.0,62483.0,0.36690007]
[1728365690655,0.122,62491.0,62484.0,0.04790545]
[1728365691050,0.122,62491.0,62485.0,0.04790545]
[1728365691251,0.122,62491.0,62485.0,0.16790545]
[1728365691552,0.002,62491.0,62485.0,0.16790545]
[1728365692054,0.002,62491.0,62485.0,0.12]
[1728365692254,0.002,62491.0,62488.0,0.12]
[1728365693460,0.001,62491.0,62488.0,0.12]
[1728365693650,0.002,62491.0,62488.0,0.12]
[1728365695849,0.066018,62491.0,62488.0,0.12]
[1728365696359,0.066019,62491.0,62488.0,0.12]
[1728365697550,0.06402,62490.0,62488.0,0.12]
[1728365697860,0.002,62491.0,62488.0,0.12]
[1728365698059,0.06402,62489.0,62488.0,0.12]
[1728365699364,0.06402,62489.0,62488.0,0.121]
[1728365699858,0.06402,62489.0,62488.0,0.16890545]
[1728365700758,0.06402,62489.0,62488.0,0.122]
[1728365700952,0.06402,62489.0,62488.0,0.16990545]
[1728365701256,0.06402,62489.0,62488.0,0.122]
[1728365701662,0.06402,62489.0,62488.0,0.16990545]
[1728365701860,0.06402,62489.0,62488.0,0.122]
[1728365702262,0.06402,62489.0,62488.0,0.16990545]
[1728365703356,0.06402,62489.0,62488.0,0.04990545]
[1728365704467,0.06402,62489.0,62488.0,0.002]
[1728365704966,0.06402,62489.0,62488.0,0.05003778]
[1728365705759,0.06402,62489.0,62488.0,0.3628]
[1728365706671,0.06402,62489.0,62488.0,0.4828]
[1728365713876,0.06402,62489.0,62488.0,0.3628]
[1728365715068,0.06402,62489.0,62488.0,0.002]
[1728365715567,0.06402,62489.0,62488.0,0.05003771]
[1728365715871,0.06402,62489.0,62488.0,0.002]
[1728365715872,0.18402,62489.0,62488.0,0.002]
[1728365716573,0.18402,62489.0,62483.0,0.00240007]
[1728365716869,0.18402,62489.0,62479.0,0.0037]
[1728365716870,0.06403,62480.0,62479.0,0.0037]
[1728365717167,0.06403,62480.0,62470.0,0.05923771]
[1728365717168,0.064031,62479.0,62470.0,0.05923771]
[1728365717370,0.064039,62471.0,62468.0,0.04803771]
[1728365718372,0.06404,62470.0,62467.0,0.12]
[1728365719273,0.064041,62469.0,62468.0,0.014]
[1728365720068,0.064041,62469.0,62468.0,0.3748]
[1728365720672,0.064041,62469.0,62468.0,0.3608]
[1728365720874,0.184041,62469.0,62468.0,0.3608]
[1728365721368,0.184041,62469.0,62468.0,0.3748]
[1728365721570,0.185041,62469.0,62468.0,0.3748]
[1728365721877,0.065041,62469.0,62468.0,0.3748]